fUSD/lending_fUSD_20240403
["ID","MTS","AMOUNT","RATE_DAILY","PERIOD"]
[321386268,1712110269037,-3565.07630295,0.00054889,30]
[321386269,1712110269046,-479.22730402,0.00054891,30]
[321386270,1712110269055,-3565.07630295,0.00054892,30]
[321386271,1712110269076,-170.46692632,0.00054892,30]
[321386272,1712110269085,-170.46692632,0.00054892,30]
[321386273,1712110269095,-53175.47091485,0.00054892,30]
[321386274,1712110269105,-150.0,0.00054893,120]
[321386275,1712110269115,-53175.47091485,0.00054894,30]
[321386276,1712110269126,-186.84791327,0.00054897,30]
[321386277,1712110269136,-53858.31905839,0.00054898,30]
[321386278,1712110269146,-238.88594907,0.00054898,30]
[321386279,1712110269156,-3525.08576826,0.00054898,30]
[321386280,1712110269167,-3525.08576826,0.00054898,30]
[321386281,1712110269177,-53175.47091485,0.000549,30]
[321386282,1712110269186,-150.0,0.000549,12]
[321386283,1712110269196,-479.22730402,0.000549,30]
[321386284,1712110269206,-170.46692632,0.00054901,30]
[321386285,1712110269215,-601.20662813,0.00054901,30]
[321386286,1712110269225,-538.0,0.00054904,120]
[321386287,1712110269234,-288.70330647,0.00054918,120]
[321386288,1712110269245,-150.0,0.00054928,120]
[321386289,1712110269255,-500.0,0.00054931,120]
[321386290,1712110269265,-380.05454496,0.00054932,120]
[321386291,1712110269275,-150.0,0.00054942,120]
[321386292,1712110269285,-288.70330647,0.0005496,120]
[321386293,1712110269294,-151.29625457,0.0005496,60]
[321386294,1712110269304,-154.12212371,0.00054962,60]
[321386295,1712110269314,-192.06566981,0.00054967,60]
[321386296,1712110269323,-200.0,0.00054978,120]
[321386297,1712110269333,-200.0,0.00054983,120]
[321386298,1712110269343,-1000.0,0.0005499,120]
[321386299,1712110269353,-500.0,0.00054991,5]
[321386300,1712110269363,-150.0,0.00054991,120]
[321386301,1712110269374,-4225.6152132,0.00054992,2]
[321386302,1712110269384,-4368.6071674,0.00054992,2]
[321386303,1712110269394,-7574.1601648,0.00054992,2]
[321386304,1712110269403,-150.0,0.00054995,120]
[321386305,1712110269413,-240917.2132776,0.00054996,7]
[321386306,1712110269423,-1000.0,0.00054999,120]
[321386307,1712110269433,-30363.79102041,0.00055,55]
[321386308,1712110269895,-251.60714365,0.00055,55]
[321386309,1712110269988,-835.82663998,0.0004,2]
[321386310,1712110269998,-90.83172473,0.00055,55]
[321386311,1712110270088,-1418.15117663,0.00055,55]
[321386312,1712110270102,-7772.02665615,0.00055,55]
[321386313,1712110270116,-1900.0,0.00055,55]
[321386314,1712110270132,-1309.14461714,0.00055,55]
[321386315,1712110270191,-685.69,0.00054794,120]
[321386316,1712110270201,-12290.958005,0.00055,55]
[321386317,1712110270275,-4562.56537436,0.00055,55]
[321386318,1712110270328,-835.82663998,0.0004,2]
[321386319,1712110270338,-151.0,0.00042904,14]
[321386320,1712110270347,-156.15727021,0.00054794,120]
[321386321,1712110270356,-5618.47523873,0.00055,55]
[321386322,1712110270370,-1741.31701954,0.00055,55]
[321386323,1712110270382,-1214.118885,0.00055,55]
[321386324,1712110270395,-742.11629914,0.00055,55]
[321386325,1712110270408,-277.0527081,0.00055,55]
[321386326,1712110270720,-835.82663998,0.0004,2]
[321386327,1712110270730,-835.82663998,0.0004,2]
[321386328,1712110270740,-835.82663998,0.0004,2]
[321386329,1712110270750,-151.0,0.00042904,14]
[321386330,1712110270762,-151.0,0.00044,14]
[321386331,1712110270772,-384.69255688,0.000489,2]
[321386332,1712110271006,-500.0,0.00054794,120]
[321386333,1712110271016,-1445.58,0.00054794,120]
[321386334,1712110271026,-33332.08115202,0.00055,55]
[321386335,1712110271045,-50906.84294772,0.00055,55]
[321386336,1712110271057,-25738.71730341,0.00055,55]
[321386337,1712110271220,-367.89172408,0.00027397,2]
[321386338,1712110271230,-92.41202985,0.00032876,2]
[321386339,1712110271690,-65.2558519,0.00032876,2]
[321386340,1712110271700,-835.82663998,0.0004,2]
[321386341,1712110271710,-835.82663998,0.0004,2]
[321386342,1712110271719,-835.82663998,0.0004,2]
[321386343,1712110271729,-835.82663998,0.0004,2]
[321386344,1712110271739,-835.82663998,0.0004,2]
[321386345,1712110271748,-151.0,0.00049707,120]
[321386346,1712110271758,-151.0,0.00049818,120]
[321386347,1712110271767,-507.74730445,0.00054794,120]
[321386348,1712110271780,-20470.20272827,0.00055,55]
[321386349,1712110271790,-50864.84771272,0.00055,120]
[321386350,1712110271802,-225.94538263,0.00055,30]
[321386351,1712110271812,-77976.09440583,0.00055,120]
[321386352,1712110272980,-1318.84577442,0.00024805,2]
[321386353,1712110272990,-664.5642438,0.000249,2]
[321386354,1712110273000,-203.27918154,0.00027396,2]
[321386355,1712110273010,-151.0,0.00037,7]
[321386356,1712110273019,-835.82663998,0.0004,2]
[321386357,1712110273028,-835.82663998,0.0004,2]
[321386358,1712110273038,-835.82663998,0.0004,2]
[321386359,1712110273047,-151.0,0.00042904,14]
[321386360,1712110273057,-186.526852,0.00042904,14]
[321386361,1712110273066,-151.0,0.00049818,120]
[321386362,1712110273076,-151.0,0.00050661,120]
[321386363,1712110273085,-151.0,0.00051,120]
[321386364,1712110273095,-151.0,0.00052,120]
[321386365,1712110273105,-256884.3974941,0.00055,120]
[321386366,1712110273115,-32808.97245078,0.00055,30]
[321386367,1712110273125,-262.24399371,0.00055,7]
[321386368,1712110273134,-1200.0,0.00055,70]
[321386369,1712110273144,-4760.65958641,0.00055,120]
[321386370,1712110273154,-804.75961451,0.00055,60]
[321386371,1712110273164,-2265.10890632,0.00055,60]
[321386372,1712110273174,-300.0,0.00055,60]
[321386373,1712110273184,-237.44146884,0.00055,30]
[321386374,1712110273194,-159.9999803,0.00055,30]
[321386375,1712110273204,-6126.5780487,0.00055,120]
[321386376,1712110273214,-856.0,0.00055,120]
[321386377,1712110273224,-38744.24058876,0.00055,120]
[321386378,1712110273234,-1000.0,0.00055,7]
[321386379,1712110273244,-1000.0,0.00055,7]
[321386380,1712110273253,-687.48,0.00055,7]
[321386381,1712110273263,-600.0,0.00055,120]
[321386382,1712110273272,-5005.04707512,0.00055,5]
[321386383,1712110273282,-2000.0,0.00055,120]
[321386384,1712110273291,-121049.70850866,0.00055,120]
[321386385,1712110273301,-2100.0,0.00055,120]
[321386386,1712110273311,-526.19,0.00055,14]
[321386387,1712110273320,-500.0,0.00055,14]
[321386388,1712110273330,-500.0,0.00055,14]
[321386389,1712110273339,-500.0,0.00055,14]
[321386390,1712110273348,-500.0,0.00055,14]
[321386391,1712110273357,-500.0,0.00055,14]
[321386392,1712110273366,-500.0,0.00055,14]
[321386393,1712110273376,-32137.61451859,0.00055,120]
[321386394,1712110273385,-500.0,0.00055,5]
[321386395,1712110273394,-1000.0,0.00055,120]
[321386396,1712110273404,-10000.0,0.00055,12]
[321386397,1712110273580,-1470.00237881,0.00055,120]
[321386398,1712110273590,-317.76441972,0.00055,30]
[321386399,1712110273600,-1300.0,0.00055,3]
[321386400,1712110273609,-1103.0,0.00055,104]
[321386401,1712110273619,-503.0,0.00055,60]
[321386402,1712110273630,-225.63480246,0.00055,90]
[321386403,1712110273640,-299.81217614,0.00055,30]
[321386404,1712110273649,-288.70330647,0.00055001,120]
[321386405,1712110273659,-153.64559786,0.00055015,120]
[321386406,1712110273669,-53267.6221905,0.0005503,2]
[321386407,1712110273678,-10467.7789367,0.0005503,2]
[321386408,1712110273687,-22387.1767694,0.0005503,2]
[321386409,1712110273696,-150.0,0.00055041,120]
[321386410,1712110273706,-288.70330647,0.00055042,120]
[321386411,1712110273716,-150.0,0.0005505,120]
[321386412,1712110273724,-153.53105328,0.00055061,120]
[321386413,1712110273734,-150.0,0.00055062,120]
[321386414,1712110273743,-253.26628543,0.00055067,7]
[321386415,1712110273754,-374.01700169,0.00055068,90]
[321386416,1712110273763,-500.0,0.00055068,30]
[321386417,1712110273775,-200.0,0.00055068,10]
[321386418,1712110273784,-500.0,0.00055068,120]
[321386419,1712110273794,-542.66606299,0.00055068,120]
[321386420,1712110273804,-500.0,0.00055068,2]
[321386421,1712110273814,-500.0,0.00055068,120]
[321386422,1712110273826,-500.0,0.00055068,120]
[321386423,1712110273835,-500.0,0.00055068,120]
[321386424,1712110273846,-500.0,0.00055068,120]
[321386425,1712110273856,-502.92418701,0.00055068,2]
[321386426,1712110273866,-532.06135766,0.00055068,120]
[321386427,1712110273877,-500.0,0.00055068,120]
[321386428,1712110273886,-521.29945489,0.00055068,120]
[321386429,1712110273896,-518.10110066,0.00055068,120]
[321386430,1712110273905,-500.0,0.00055068,120]
[321386431,1712110273914,-500.0,0.00055068,120]
[321386432,1712110273925,-500.0,0.00055068,120]
[321386433,1712110273934,-500.0,0.00055068,120]
[321386434,1712110273944,-500.0,0.00055068,120]
[321386435,1712110273954,-501.52,0.00055068,120]
[321386436,1712110273963,-500.0,0.00055068,120]
[321386437,1712110273972,-500.0,0.00055068,120]
[321386438,1712110273981,-500.0,0.00055068,120]
[321386439,1712110273990,-523.9837076,0.00055068,120]
[321386440,1712110273999,-179.63542272,0.00055068,120]
[321386441,1712110274008,-514.34774889,0.00055068,15]
[321386442,1712110274017,-500.0,0.00055068,120]
[321386443,1712110274026,-500.0,0.00055068,120]
[321386444,1712110274035,-500.0,0.00055068,120]
[321386445,1712110274044,-320.63117033,0.00055068,120]
[321386446,1712110274053,-500.0,0.00055068,120]
[321386447,1712110274062,-480.15115686,0.00055068,120]
[321386448,1712110274071,-500.0,0.00055068,120]
[321386449,1712110274080,-500.0,0.00055068,120]
[321386450,1712110274089,-617.01402645,0.00055068,120]
[321386451,1712110274097,-513.26544245,0.00055068,120]
[321386452,1712110274106,-500.0,0.00055068,120]
[321386453,1712110274117,-362.76762799,0.00055068,120]
[321386454,1712110274128,-500.0,0.00055068,120]
[321386455,1712110274136,-500.0,0.00055068,120]
[321386456,1712110274146,-500.0,0.00055068,120]
[321386457,1712110274155,-500.0,0.00055068,120]
[321386458,1712110274164,-500.0,0.00055068,120]
[321386459,1712110274174,-500.0,0.00055068,120]
[321386460,1712110274184,-500.0,0.00055068,120]
[321386461,1712110274193,-500.0,0.00055068,120]
[321386462,1712110274202,-500.0,0.00055068,120]
[321386463,1712110274211,-500.0,0.00055068,120]
[321386464,1712110274221,-500.0,0.00055068,120]
[321386465,1712110274231,-500.0,0.00055068,120]
[321386466,1712110274240,-326.47429938,0.00055068,120]
[321386467,1712110274250,-500.0,0.00055068,120]
[321386468,1712110274260,-208.55426453,0.00055068,120]
[321386469,1712110274270,-500.0,0.00055068,120]
[321386470,1712110274279,-500.0,0.00055068,120]
[321386471,1712110274289,-733.03,0.00055068,120]
[321386472,1712110274298,-500.0,0.00055068,120]
[321386473,1712110274307,-500.0,0.00055068,120]
[321386474,1712110274317,-567.15,0.00055068,120]
[321386475,1712110274327,-500.0,0.00055068,120]
[321386476,1712110274337,-634.67,0.00055068,120]
[321386477,1712110274347,-500.0,0.00055068,120]
[321386478,1712110274356,-527.1269541,0.00055068,120]
[321386479,1712110274366,-500.0,0.00055068,120]
[321386480,1712110274377,-500.0,0.00055068,120]
[321386481,1712110274386,-500.0,0.00055068,120]
[321386482,1712110274396,-500.0,0.00055068,120]
[321386483,1712110274406,-500.0,0.00055068,120]
[321386484,1712110274415,-500.0,0.00055068,120]
[321386485,1712110274425,-592.26,0.00055068,120]
[321386486,1712110274434,-830.1,0.00055068,120]
[321386487,1712110274444,-716.48,0.00055068,120]
[321386488,1712110274453,-695.9,0.00055068,120]
[321386489,1712110274462,-815.5,0.00055068,120]
[321386490,1712110274471,-500.0,0.00055068,120]
[321386491,1712110274481,-505.86,0.00055068,120]
[321386492,1712110274491,-500.0,0.00055068,120]
[321386493,1712110274501,-500.0,0.00055068,120]
[321386494,1712110274512,-500.0,0.00055068,120]
[321386495,1712110274522,-1031.05,0.00055068,120]
[321386496,1712110274531,-500.0,0.00055068,120]
[321386497,1712110274541,-500.0,0.00055068,120]
[321386498,1712110274551,-500.0,0.00055068,120]
[321386499,1712110274560,-500.0,0.00055068,120]
[321386500,1712110274569,-500.0,0.00055068,120]
[321386501,1712110274578,-572.02,0.00055068,120]
[321386502,1712110274587,-620.04,0.00055068,120]
[321386503,1712110274597,-500.0,0.00055068,120]
[321386504,1712110274606,-500.0,0.00055068,120]
[321386505,1712110274615,-500.0,0.00055068,120]
[321386506,1712110274626,-500.0,0.00055068,120]
[321386507,1712110274635,-1305.79,0.00055068,120]
[321386508,1712110274644,-1000.0,0.00055068,30]
[321386509,1712110274654,-500.0,0.00055068,120]
[321386510,1712110274663,-1048.09,0.00055068,120]
[321386511,1712110274672,-500.0,0.00055068,120]
[321386512,1712110274681,-741.62,0.00055068,120]
[321386513,1712110274691,-500.0,0.00055068,120]
[321386514,1712110274700,-500.0,0.00055068,120]
[321386515,1712110274709,-500.0,0.00055068,120]
[321386516,1712110274719,-858.87,0.00055068,120]
[321386517,1712110274728,-500.0,0.00055068,120]
[321386518,1712110274737,-674.03,0.00055068,120]
[321386519,1712110274746,-647.02,0.00055068,120]
[321386520,1712110274755,-500.0,0.00055068,120]
[321386521,1712110274764,-500.0,0.00055068,120]
[321386522,1712110274778,-606.48876709,0.00055068,120]
[321386523,1712110274787,-500.0,0.00055068,120]
[321386524,1712110274796,-531.81,0.00055068,120]
[321386525,1712110274806,-500.0,0.00055068,120]
[321386526,1712110274815,-500.0,0.00055068,120]
[321386527,1712110274827,-500.0,0.00055068,120]
[321386528,1712110274836,-1265.03,0.00055068,120]
[321386529,1712110274845,-290.04420447,0.00055068,120]
[321386530,1712110274856,-500.0,0.00055068,120]
[321386531,1712110274865,-500.0,0.00055068,120]
[321386532,1712110274876,-500.0,0.00055068,120]
[321386533,1712110274885,-898.63,0.00055068,120]
[321386534,1712110274894,-911.45,0.00055068,120]
[321386535,1712110274904,-744.18,0.00055068,120]
[321386536,1712110274913,-500.0,0.00055068,120]
[321386537,1712110274923,-726.46,0.00055068,120]
[321386538,1712110274932,-500.0,0.00055068,120]
[321386539,1712110274943,-500.0,0.00055068,120]
[321386540,1712110274953,-1635.23,0.00055068,120]
[321386541,1712110274962,-889.23,0.00055068,120]
[321386542,1712110274972,-500.0,0.00055068,120]
[321386543,1712110274982,-500.0,0.00055068,120]
[321386544,1712110274992,-500.0,0.00055068,120]
[321386545,1712110275001,-500.0,0.00055068,120]
[321386546,1712110275010,-738.09,0.00055068,120]
[321386547,1712110275019,-598.13,0.00055068,50]
[321386548,1712110275028,-500.0,0.00055068,120]
[321386549,1712110275037,-781.2,0.00055068,120]
[321386550,1712110275046,-500.0,0.00055068,120]
[321386551,1712110275055,-800.62,0.00055068,120]
[321386552,1712110275064,-1664.29261649,0.00055068,120]
[321386553,1712110275073,-500.0,0.00055068,120]
[321386554,1712110275082,-500.0,0.00055068,120]
[321386555,1712110275091,-500.0,0.00055068,120]
[321386556,1712110275102,-551.66,0.00055068,120]
[321386557,1712110275111,-768.64,0.00055068,120]
[321386558,1712110275120,-500.0,0.00055068,120]
[321386559,1712110275130,-523.67598458,0.00055068,120]
[321386560,1712110275139,-1313.21,0.00055068,120]
[321386561,1712110275148,-500.0,0.00055068,120]
[321386562,1712110275157,-1158.69,0.00055068,120]
[321386563,1712110275167,-500.0,0.00055068,120]
[321386564,1712110275176,-500.0,0.00055068,120]
[321386565,1712110275186,-500.0,0.00055068,120]
[321386566,1712110275195,-500.0,0.00055068,120]
[321386567,1712110275204,-904.81,0.00055068,120]
[321386568,1712110275213,-500.0,0.00055068,120]
[321386569,1712110275223,-1019.36,0.00055068,120]
[321386570,1712110275232,-1009.1,0.00055068,120]
[321386571,1712110275241,-500.0,0.00055068,120]
[321386572,1712110275250,-355.01,0.00055068,120]
[321386573,1712110275261,-500.0,0.00055068,120]
[321386574,1712110275270,-500.0,0.00055068,120]
[321386575,1712110275279,-500.0,0.00055068,120]
[321386576,1712110275291,-1428.21,0.00055068,120]
[321386577,1712110275301,-500.0,0.00055068,120]
[321386578,1712110275310,-923.77,0.00055068,120]
[321386579,1712110275320,-500.0,0.00055068,120]
[321386580,1712110275329,-500.0,0.00055068,120]
[321386581,1712110275338,-500.0,0.00055068,120]
[321386582,1712110275347,-1421.1,0.00055068,120]
[321386583,1712110275356,-561.37,0.00055068,120]
[321386584,1712110275366,-500.0,0.00055068,2]
[321386585,1712110275377,-500.0,0.00055068,120]
[321386586,1712110275386,-500.0,0.00055068,120]
[321386587,1712110275395,-500.0,0.00055068,120]
[321386588,1712110275404,-500.0,0.00055068,120]
[321386589,1712110275414,-631.39,0.00055068,120]
[321386590,1712110275422,-500.0,0.00055068,120]
[321386591,1712110275432,-593.19040663,0.00055068,120]
[321386592,1712110275442,-999.61,0.00055068,120]
[321386593,1712110275451,-500.0,0.00055068,120]
[321386594,1712110275461,-781.76,0.00055068,120]
[321386595,1712110275470,-500.0,0.00055068,120]
[321386596,1712110275479,-500.0,0.00055068,120]
[321386597,1712110275489,-500.0,0.00055068,120]
[321386598,1712110275499,-500.0,0.00055068,120]
[321386599,1712110275510,-500.0,0.00055068,120]
[321386600,1712110275521,-500.0,0.00055068,120]
[321386601,1712110275530,-861.22,0.00055068,120]
[321386602,1712110275540,-1034.01,0.00055068,120]
[321386603,1712110275550,-500.0,0.00055068,120]
[321386604,1712110275560,-500.0,0.00055068,120]
[321386605,1712110275569,-500.0,0.00055068,120]
[321386606,1712110275578,-1013.21,0.00055068,120]
[321386607,1712110275587,-500.0,0.00055068,120]
[321386608,1712110275596,-500.0,0.00055068,120]
[321386609,1712110275605,-500.0,0.00055068,120]
[321386610,1712110275614,-500.0,0.00055068,120]
[321386611,1712110275624,-500.0,0.00055068,120]
[321386612,1712110275691,-500.0,0.00055068,120]
[321386613,1712110275700,-783.1,0.00055068,120]
[321386614,1712110275709,-500.0,0.00055068,120]
[321386615,1712110275854,-973.5,0.00055068,120]
[321386616,1712110275865,-500.0,0.00055068,120]
[321386617,1712110275874,-500.0,0.00055068,120]
[321386618,1712110275884,-500.0,0.00055068,120]
[321386619,1712110275893,-500.0,0.00055068,120]
[321386620,1712110275903,-888.0,0.00055068,120]
[321386621,1712110275913,-500.0,0.00055068,120]
[321386622,1712110275922,-610.59,0.00055068,120]
[321386623,1712110275932,-737.46,0.00055068,120]
[321386624,1712110275942,-500.0,0.00055068,120]
[321386625,1712110275951,-600.75,0.00055068,120]
[321386626,1712110275962,-817.96,0.00055068,30]
[321386627,1712110275971,-946.4,0.00055068,120]
[321386628,1712110275980,-627.12,0.00055068,120]
[321386629,1712110275990,-642.05,0.00055068,120]
[321386630,1712110276001,-500.0,0.00055068,120]
[321386631,1712110276010,-500.0,0.00055068,120]
[321386632,1712110276019,-541.95,0.00055068,120]
[321386633,1712110276028,-1175.25,0.00055068,120]
[321386634,1712110276037,-944.47,0.00055068,120]
[321386635,1712110276046,-449.36544232,0.00055068,120]
[321386636,1712110276056,-177.79155442,0.00055068,120]
[321386637,1712110276065,-621.09,0.00055068,120]
[321386638,1712110276074,-500.0,0.00055068,120]
[321386639,1712110276083,-500.0,0.00055068,120]
[321386640,1712110276093,-500.0,0.00055068,120]
[321386641,1712110276102,-625.42,0.00055068,120]
[321386642,1712110276112,-500.0,0.00055068,120]
[321386643,1712110276121,-755.54,0.00055068,120]
[321386644,1712110276132,-1219.91,0.00055068,120]
[321386645,1712110276141,-500.0,0.00055068,120]
[321386646,1712110276151,-500.0,0.00055068,120]
[321386647,1712110276160,-500.0,0.00055068,120]
[321386648,1712110276169,-500.0,0.00055068,120]
[321386649,1712110276178,-500.0,0.00055068,120]
[321386650,1712110276188,-1125.13,0.00055068,120]
[321386651,1712110276197,-1000.0,0.00055068,120]
[321386652,1712110276207,-500.0,0.00055068,120]
[321386653,1712110276216,-500.0,0.00055068,120]
[321386654,1712110276225,-953.84,0.00055068,120]
[321386655,1712110276235,-784.38,0.00055068,120]
[321386656,1712110276245,-393.93822291,0.00055068,120]
[321386657,1712110276255,-500.0,0.00055068,120]
[321386658,1712110276264,-543.34,0.00055068,120]
[321386659,1712110276273,-857.54,0.00055068,120]
[321386660,1712110276283,-871.31,0.00055068,120]
[321386661,1712110276292,-500.0,0.00055068,120]
[321386662,1712110276301,-500.0,0.00055068,120]
[321386663,1712110276310,-776.92,0.00055068,120]
[321386664,1712110276320,-627.16782703,0.00055068,120]
[321386665,1712110276329,-2624.53,0.00055068,120]
[321386666,1712110276338,-500.0,0.00055068,120]
[321386667,1712110276348,-500.0,0.00055068,120]
[321386668,1712110276357,-537.63,0.00055068,120]
[321386669,1712110276367,-500.0,0.00055068,120]
[321386670,1712110276378,-514.467745,0.00055068,120]
[321386671,1712110276387,-322.79977801,0.00055068,120]
[321386672,1712110276396,-714.94,0.00055068,30]
[321386673,1712110276405,-549.94,0.00055068,120]
[321386674,1712110276414,-500.0,0.00055068,120]
[321386675,1712110276423,-656.94,0.00055068,120]
[321386676,1712110276432,-618.51,0.00055068,120]
[321386677,1712110276442,-500.0,0.00055068,120]
[321386678,1712110276451,-500.0,0.00055068,120]
[321386679,1712110276461,-500.0,0.00055068,120]
[321386680,1712110276470,-500.0,0.00055068,120]
[321386681,1712110276480,-500.0,0.00055068,120]
[321386682,1712110276489,-500.0,0.00055068,120]
[321386683,1712110276497,-646.56,0.00055068,120]
[321386684,1712110276506,-500.0,0.00055068,120]
[321386685,1712110276516,-500.0,0.00055068,120]
[321386686,1712110276525,-740.86,0.00055068,120]
[321386687,1712110276534,-747.23,0.00055068,120]
[321386688,1712110276543,-1144.32,0.00055068,120]
[321386689,1712110276552,-501.92,0.00055068,120]
[321386690,1712110276561,-1170.63,0.00055068,120]
[321386691,1712110276570,-500.0,0.00055068,120]
[321386692,1712110276579,-500.0,0.00055068,120]
[321386693,1712110276588,-500.0,0.00055068,120]
[321386694,1712110276599,-500.0,0.00055068,120]
[321386695,1712110276608,-881.45,0.00055068,120]
[321386696,1712110276618,-500.0,0.00055068,120]
[321386697,1712110276629,-500.0,0.00055068,120]
[321386698,1712110276639,-500.0,0.00055068,120]
[321386699,1712110276648,-500.0,0.00055068,120]
[321386700,1712110276657,-500.0,0.00055068,120]
[321386701,1712110276666,-730.43,0.00055068,120]
[321386702,1712110276676,-500.0,0.00055068,120]
[321386703,1712110276685,-500.0,0.00055068,120]
[321386704,1712110276694,-500.0,0.00055068,120]
[321386705,1712110276704,-500.0,0.00055068,120]
[321386706,1712110276713,-500.0,0.00055068,120]
[321386707,1712110276723,-757.47,0.00055068,2]
[321386708,1712110276732,-500.0,0.00055068,120]
[321386709,1712110276742,-500.0,0.00055068,120]
[321386710,1712110276752,-500.0,0.00055068,120]
[321386711,1712110276761,-500.0,0.00055068,120]
[321386712,1712110276772,-1332.12,0.00055068,120]
[321386713,1712110276782,-650.81,0.00055068,120]
[321386714,1712110276792,-500.0,0.00055068,30]
[321386715,1712110276802,-500.0,0.00055068,120]
[321386716,1712110276827,-500.0,0.00055068,120]
[321386717,1712110276844,-500.0,0.00055068,120]
[321386718,1712110276865,-500.0,0.00055068,120]
[321386719,1712110276886,-813.42,0.00055068,120]
[321386720,1712110276902,-500.0,0.00055068,120]
[321386721,1712110276920,-1115.69,0.00055068,120]
[321386722,1712110276937,-500.0,0.00055068,120]
[321386723,1712110276954,-1257.85,0.00055068,120]
[321386724,1712110276970,-500.0,0.00055068,120]
[321386725,1712110276987,-500.0,0.00055068,120]
[321386726,1712110277006,-500.0,0.00055068,120]
[321386727,1712110277026,-301.65252592,0.00055068,120]
[321386728,1712110277039,-500.0,0.00055068,120]
[321386729,1712110277054,-500.0,0.00055068,120]
[321386730,1712110277070,-803.34,0.00055068,120]
[321386731,1712110277084,-500.0,0.00055068,120]
[321386732,1712110277098,-500.0,0.00055068,120]
[321386733,1712110277114,-500.0,0.00055068,120]
[321386734,1712110277129,-525.15,0.00055068,120]
[321386735,1712110277145,-524.69694563,0.00055068,120]
[321386736,1712110277159,-500.0,0.00055068,120]
[321386737,1712110277177,-713.57,0.00055068,120]
[321386738,1712110277191,-507.47,0.00055068,120]
[321386739,1712110277205,-682.71,0.00055068,120]
[321386740,1712110277219,-548.86,0.00055068,120]
[321386741,1712110277235,-500.0,0.00055068,120]
[321386742,1712110277250,-515.55700433,0.00055068,120]
[321386743,1712110277265,-500.0,0.00055068,120]
[321386744,1712110277280,-520.19165921,0.00055068,120]
[321386745,1712110277295,-437.92,0.00055068,120]
[321386746,1712110277309,-500.0,0.00055068,120]
[321386747,1712110277323,-852.46,0.00055068,120]
[321386748,1712110277337,-500.0,0.00055068,120]
[321386749,1712110277351,-500.0,0.00055068,120]
[321386750,1712110277366,-500.0,0.00055068,120]
[321386751,1712110277382,-771.54,0.00055068,120]
[321386752,1712110277396,-732.63,0.00055068,120]
[321386753,1712110277410,-524.36685236,0.00055068,120]
[321386754,1712110277425,-500.0,0.00055068,120]
[321386755,1712110277439,-500.0,0.00055068,120]
[321386756,1712110277454,-500.0,0.00055068,120]
[321386757,1712110277468,-557.81,0.00055068,120]
[321386758,1712110277482,-500.0,0.00055068,120]
[321386759,1712110277496,-500.0,0.00055068,120]
[321386760,1712110277510,-500.0,0.00055068,120]
[321386761,1712110277525,-699.54,0.00055068,120]
[321386762,1712110277538,-500.0,0.00055068,120]
[321386763,1712110277553,-2274.22,0.00055068,120]
[321386764,1712110277568,-500.0,0.00055068,120]
[321386765,1712110277585,-568.33,0.00055068,120]
[321386766,1712110277599,-1880.77,0.00055068,120]
[321386767,1712110277614,-500.0,0.00055068,120]